bitfinex/quotes_ETHUSD_20241207
["timestamp","ask_amount","ask_price","bid_price","bid_amount"]
[1733608526056,0.28172889,4009.0,4008.1,2.33152257]
[1733608526253,0.1851388,4008.9,4008.1,2.33152257]
[1733608526465,0.28172889,4009.0,4008.1,2.33152257]
[1733608526769,0.18517087,4008.9,4008.1,2.33152257]
[1733608526978,0.18517087,4008.8,4008.5,2.33152257]
[1733608527175,0.7714,4009.1,4008.5,2.33152257]
[1733608527487,0.18526228,4009.0,4008.5,2.33152257]
[1733608527678,0.18526228,4008.9,4008.5,2.35632257]
[1733608527881,0.7714,4009.1,4008.5,2.35632257]
[1733608528068,0.1852845,4009.0,4008.5,2.35632257]
[1733608528265,0.1852845,4008.9,4008.5,2.35632257]
[1733608528476,0.7714,4009.1,4008.5,2.35632257]
[1733608528771,0.1853511,4009.0,4008.5,2.35632257]
[1733608528971,0.1853511,4008.9,4008.5,2.35632257]
[1733608529146,1.28441646,4009.1,4008.5,2.35632257]
[1733608529482,0.18539453,4009.0,4008.5,2.35632257]
[1733608529651,1.28441646,4009.1,4008.5,2.35632257]
[1733608529652,0.18539453,4008.9,4008.5,2.35632257]
[1733608529862,1.28441646,4009.1,4008.5,2.35632257]
[1733608530066,0.18539454,4009.0,4008.5,2.35632257]
[1733608530244,0.18539454,4008.9,4008.5,2.35632257]
[1733608530446,1.28441646,4009.1,4008.5,2.35632257]
[1733608530647,0.18540282,4009.0,4008.7,1.0750827]
[1733608530949,0.18540282,4008.9,4008.7,1.0998827]
[1733608531159,0.7714,4009.1,4008.7,1.0998827]
[1733608531362,0.18540861,4009.0,4008.7,1.0998827]
[1733608531591,0.18540861,4008.9,4008.7,1.0998827]
[1733608531800,1.03126139,4009.3,4008.8,1.0750827]
[1733608531982,1.83536139,4009.5,4009.2,1.0750827]
[1733608532195,1.04315845,4009.4,4009.2,1.0998827]
[1733608532376,0.18548134,4009.3,4009.2,1.0998827]
[1733608532561,0.18548134,4009.3,4009.2,0.0248]
[1733608534836,0.18548134,4009.3,4008.7,3.08548711]
[1733608535004,0.18548134,4009.2,4008.8,0.48317271]
[1733608535155,0.8041,4009.5,4008.8,0.48317271]
[1733608535359,0.18555215,4009.4,4008.7,3.08548711]
[1733608535579,0.18555215,4009.3,4008.7,3.08548711]
[1733608535784,0.18555215,4009.2,4008.7,3.08548711]
[1733608535993,0.8041,4009.5,4008.7,3.08548711]
[1733608536196,0.18555117,4009.4,4008.7,3.08548711]
[1733608536401,0.18555117,4009.3,4008.8,1.74615]
[1733608536695,0.18555117,4009.2,4009.1,2.32878711]
[1733608536898,0.29695706,4009.7,4009.1,2.32878711]
[1733608537102,0.48255635,4009.6,4009.1,2.32878711]
[1733608537260,1.51795269,4009.8,4009.1,2.32878711]
[1733608537261,0.48255635,4009.5,4009.1,2.32878711]
[1733608537471,0.18559929,4009.4,4009.1,2.32878711]
[1733608537697,0.18559929,4009.3,4009.1,2.35358711]
[1733608537903,0.18559929,4009.2,4009.1,2.35358711]
[1733608538590,2.67448601,4009.9,4009.1,2.35358711]
[1733608538790,1.33990928,4009.8,4009.1,2.35358711]
[1733608538995,0.48276161,4009.7,4009.1,2.35358711]
[1733608539189,0.48276161,4009.6,4009.1,2.35358711]
[1733608539396,0.18567754,4009.5,4009.1,2.35358711]
[1733608539707,0.18567754,4009.4,4009.1,2.35358711]
[1733608539866,0.18567754,4009.3,4009.1,2.35358711]
[1733608540073,0.29711567,4009.7,4009.1,2.35358711]
[1733608540270,0.48287286,4009.6,4009.1,2.35358711]
[1733608540504,0.48287286,4009.5,4009.1,2.35358711]
[1733608540714,0.18572033,4009.4,4009.1,2.35358711]
[1733608540923,0.18572033,4009.3,4009.1,2.35358711]
[1733608541073,0.18572033,4009.2,4009.1,2.35358711]
[1733608542103,0.18572589,4009.2,4009.1,2.35358711]
[1733608544087,1.83536139,4009.9,4009.1,2.35358711]
[1733608544388,3.89093407,4009.8,4009.1,2.35358711]
[1733608544719,2.62788886,4009.7,4009.1,2.35358711]
[1733608544918,0.48302044,4009.6,4009.1,2.35358711]
[1733608545218,0.18577709,4009.5,4009.4,2.32878711]
[1733608545572,0.18577709,4009.5,4009.4,2.35358711]
[1733608546010,0.4830077,4009.5,4009.4,2.35358711]
[1733608546985,0.18577709,4009.5,4009.4,2.35358711]
[1733608547401,0.4830314,4009.5,4009.4,2.35358711]
[1733608547913,1.34137919,4009.5,4009.4,2.35358711]
[1733608549381,1.34142779,4009.5,4009.4,2.35358711]
[1733608550486,2.62942336,4009.5,4009.4,2.35358711]
[1733608550906,2.62974253,4009.5,4009.4,2.35358711]
[1733608552408,3.66100392,4009.5,4009.4,2.35358711]
[1733608552584,3.66100392,4009.5,4009.4,1.0993221]
[1733608552927,3.66093705,4009.5,4009.4,1.0993221]
[1733608554524,2.62967566,4009.5,4009.4,1.0993221]
[1733608554862,2.63146615,4009.5,4009.4,1.0993221]
[1733608556520,2.63162179,4009.5,4009.4,1.0993221]
[1733608558342,4.17851388,4009.5,4009.4,1.0993221]
[1733608559851,2.63162179,4009.5,4009.4,1.0993221]
[1733608560214,2.6319458,4009.5,4009.4,1.0993221]
[1733608560529,4.17883789,4009.5,4009.4,1.0993221]
[1733608560732,0.48349278,4009.5,4009.4,0.0248]
[1733608560938,4.19450438,4009.5,4009.4,0.0248]
[1733608561558,6.7924393,4009.5,4009.4,0.0248]
[1733608561758,7.81311289,4009.5,4009.4,0.0248]
[1733608561964,6.7924393,4009.5,4009.4,0.0248]
[1733608562264,4.94428838,4009.5,4009.4,0.0248]
[1733608562558,4.94439874,4009.5,4009.4,0.0248]
[1733608562729,4.94439874,4009.5,4009.3,1.0745221]
[1733608562730,7.54519531,4009.5,4009.3,1.06903273]
[1733608562933,4.7119124,4009.4,4009.3,1.06903273]
[1733608563119,4.9444245,4009.4,4009.3,1.06903273]
[1733608563454,4.7119124,4009.4,4009.3,1.06903273]
[1733608563952,6.79294219,4009.4,4009.3,1.06903273]
[1733608564252,6.79334863,4009.4,4009.3,1.06903273]
[1733608564438,4.71231884,4009.4,4009.3,1.06903273]
[1733608565054,4.71231884,4009.4,4007.9,1.14537202]
[1733608565055,5.54982959,4009.4,4008.3,0.7572]
[1733608565294,1.04075864,4008.8,4008.3,0.7572]
[1733608565494,1.56113796,4009.0,4008.3,0.7572]
[1733608565495,3.37769918,4008.7,4008.3,0.7572]
[1733608565663,3.37769918,4008.6,4007.9,0.7572]
[1733608565995,1.04075864,4008.4,4008.3,0.0248]
[1733608566289,3.19169874,4008.4,4008.3,0.0248]
[1733608566498,3.37768471,4008.4,4008.3,1.0993221]
[1733608568592,2.33692607,4008.4,4008.3,1.0993221]
[1733608568801,0.86037604,4008.4,4008.3,2.61885452]
[1733608569090,1.04075864,4008.6,4008.3,2.61885452]
[1733608569291,0.8602813,4008.5,4008.3,2.61885452]
[1733608569495,1.04075864,4008.6,4008.3,2.61885452]
[1733608569656,0.86023737,4008.5,4008.3,2.61885452]
[1733608569986,1.04075864,4008.6,4008.3,2.61885452]
[1733608570151,2.33635571,4008.5,4008.3,2.61885452]
[1733608570354,1.04075864,4008.6,4008.3,2.61885452]
[1733608570574,0.8602073,4008.5,4008.3,1.9268221]
[1733608570790,0.86022139,4008.4,4008.3,1.9268221]
[1733608570952,1.04075864,4008.6,4008.3,1.9268221]
[1733608571157,2.15055363,4008.5,4008.3,1.9268221]
[1733608571391,0.86022145,4008.4,4008.3,1.9268221]
[1733608571594,1.04075864,4008.6,4008.3,1.9268221]
[1733608571811,2.1504961,4008.5,4008.3,1.9268221]
[1733608572087,1.04075864,4008.6,4008.4,1.0745221]
[1733608572287,2.15043638,4008.5,4008.4,1.0745221]
[1733608572490,0.86017455,4008.5,4008.4,1.0745221]
[1733608573589,1.04075864,4008.6,4008.4,1.0745221]
[1733608573764,0.86013074,4008.5,4008.4,1.0745221]
[1733608573959,2.15035645,4008.5,4008.4,1.0745221]
[1733608574388,0.86013074,4008.5,4008.4,1.0745221]
[1733608576585,0.86012342,4008.5,4008.4,1.0745221]
[1733608578604,0.86006685,4008.5,4008.4,1.0745221]
[1733608579303,1.04075864,4008.7,4008.4,1.0745221]
[1733608579472,2.33582513,4008.6,4008.4,1.0745221]
[1733608579679,1.04075864,4008.7,4008.4,1.0745221]
[1733608579878,2.33575219,4008.6,4008.4,1.0745221]
[1733608580088,1.04075864,4008.7,4008.4,1.0745221]
[1733608580294,2.33552221,4008.6,4008.4,1.0745221]
[1733608580601,0.85984749,4008.5,4008.4,1.0745221]
[1733608580922,1.04075864,4008.7,4008.4,1.0745221]
[1733608581120,2.33518691,4008.6,4008.4,1.0745221]
[1733608581321,1.04075864,4008.7,4008.3,0.8523]
[1733608581504,2.33507816,4008.6,4008.5,1.0745221]
[1733608581708,0.85976238,4008.6,4008.5,1.0745221]
[1733608582581,1.04075864,4008.8,4008.5,1.0993221]
[1733608582782,2.33493036,4008.7,4008.5,1.0993221]
[1733608583014,0.85969806,4008.6,4008.5,1.0993221]
[1733608583623,1.04075864,4008.9,4008.5,1.0993221]
[1733608583841,1.04075864,4008.9,4008.8,1.0745221]
[1733608584149,3.3757707,4008.9,4008.8,1.0745221]
[1733608584714,2.33501206,4008.9,4008.8,1.0745221]
[1733608585115,3.37470132,4008.9,4008.8,1.0993221]
[1733608585313,3.18899701,4008.9,4008.8,1.0993221]
[1733608585510,3.37472882,4008.9,4008.8,1.0993221]
[1733608586037,3.37474873,4008.9,4008.8,1.0993221]
[1733608586210,2.33503956,4008.9,4008.8,1.0993221]
[1733608586395,4.19338372,4008.9,4008.8,1.0993221]
[1733608586601,2.63224576,4008.9,4008.8,1.0993221]
[1733608587131,3.37497298,4008.9,4008.8,1.0993221]
[1733608587958,2.33503956,4008.9,4008.8,1.0993221]
[1733608588430,2.33503956,4008.9,4008.8,4.6760942]
[1733608588431,1.04557986,4008.9,4008.8,4.6760942]
[1733608588631,1.03993342,4009.2,4008.8,3.6015721]
[1733608588818,2.33556277,4009.1,4008.9,0.36015721]
[1733608589134,1.03993342,4009.2,4008.9,0.36015721]
[1733608589135,1.04572799,4009.0,4008.9,0.36015721]
[1733608589440,0.18583814,4009.0,4008.9,1.43467931]
[1733608591556,1.04574714,4009.0,4008.9,1.43467931]
[1733608591847,0.18583814,4009.0,4008.9,1.43467931]
[1733608592008,0.18583814,4009.0,4008.8,0.7809]
[1733608592009,1.04577921,4009.0,4008.8,0.0248]
[1733608592212,1.03993342,4009.1,4008.9,1.0745221]
[1733608592425,2.33502399,4009.0,4008.9,1.0745221]
[1733608593248,2.33513067,4009.0,4008.9,1.0745221]
[1733608595432,3.37506409,4009.0,4008.9,1.0745221]
[1733608596651,2.33513067,4009.0,4008.9,1.0745221]
[1733608596811,2.33509382,4009.0,4008.9,1.0745221]
[1733608598213,2.33533822,4009.0,4008.9,1.0745221]
[1733608598425,3.37527164,4009.0,4008.9,1.0745221]
[1733608603159,3.37562955,4009.0,4008.9,1.8306221]
[1733608603327,2.33569613,4009.0,4008.9,1.8306221]
[1733608604346,2.14991828,4009.0,4008.9,1.8306221]
[1733608604541,2.3357149,4009.0,4008.9,1.8306221]
[1733608605359,2.3357149,4009.0,4008.8,0.0248]
[1733608605650,0.85996731,4008.9,4008.8,0.0248]
[1733608606029,0.86011287,4008.9,4008.8,0.0248]
[1733608608048,0.86009327,4008.9,4008.8,0.0248]
[1733608609277,1.04592881,4008.9,4008.8,0.0248]
[1733608609849,2.33602551,4008.9,4008.8,0.0248]
[1733608610680,2.33602551,4008.9,4008.8,1.0993221]
[1733608610859,2.33625769,4008.9,4008.8,1.0993221]
[1733608611232,2.33638588,4008.9,4008.8,1.0993221]
[1733608612031,1.046057,4008.9,4008.8,1.0993221]
[1733608612563,1.046057,4008.9,4008.8,2.58808931]
[1733608612964,1.04636532,4008.9,4008.8,2.58808931]
[1733608613346,0.18596373,4008.9,4008.8,2.58808931]
[1733608613645,0.18597851,4008.9,4008.8,2.58808931]
[1733608614661,0.18599089,4008.9,4008.8,2.58808931]
[1733608615448,1.04650286,4008.9,4008.8,2.58808931]
[1733608618158,1.04654755,4008.9,4008.8,2.58808931]
[1733608618459,1.046616,4008.9,4008.8,2.58808931]
[1733608618992,1.0466151,4008.9,4008.8,2.58808931]
[1733608620585,1.0466151,4008.9,4008.8,0.0248]
[1733608620785,2.33750806,4008.9,4008.8,1.0993221]
[1733608621192,2.15144962,4008.9,4008.8,0.0248]
[1733608621395,2.63510961,4008.9,4008.8,1.0993221]
[1733608621991,4.19624757,4008.9,4008.8,1.0993221]
[1733608622192,2.33744502,4008.9,4008.8,1.0993221]
[1733608622496,2.6350682,4008.9,4008.8,1.0993221]
[1733608623084,4.19620616,4008.9,4008.8,1.0993221]
[1733608623284,2.6350682,4008.9,4008.8,1.0993221]
[1733608623485,4.19620616,4008.9,4008.8,1.0993221]
[1733608624715,4.19627348,4008.9,4008.8,1.0993221]
[1733608625577,4.30374242,4008.9,4008.8,1.0993221]
[1733608626172,4.14366645,4008.9,4008.8,1.0993221]
[1733608628575,4.30395817,4008.9,4008.8,1.0993221]
[1733608631420,3.06754634,4008.9,4008.8,1.0993221]
[1733608633676,5.14906362,4008.9,4008.8,1.0993221]
[1733608635021,3.06754634,4008.9,4008.8,1.0993221]
[1733608635399,6.44126561,4008.9,4008.8,1.0993221]
[1733608635598,3.87601746,4008.9,4008.8,1.0993221]
[1733608635824,4.35962156,4008.9,4008.8,1.0993221]
[1733608636411,4.35963258,4008.9,4008.8,1.0993221]
[1733608636880,6.44114986,4008.9,4008.8,1.0993221]
[1733608637328,4.35963258,4008.9,4008.8,1.0993221]
[1733608637484,6.44114986,4008.9,4008.8,1.0993221]
[1733608638625,4.35963258,4008.9,4008.8,1.0993221]
[1733608639227,6.44114986,4008.9,4008.8,1.0993221]
[1733608639528,4.35963258,4008.9,4008.8,1.0993221]
[1733608641266,4.35855796,4008.9,4008.8,1.0993221]
[1733608645016,6.44007524,4008.9,4008.8,1.0993221]
[1733608645228,4.35855796,4008.9,4008.8,1.0993221]
[1733608645456,6.44007524,4008.9,4008.8,1.0993221]
[1733608645955,6.44007524,4008.9,4008.2,0.998108]
[1733608646156,1.04105481,4008.5,4008.2,0.998108]
[1733608646358,0.86082495,4008.4,4008.2,0.998108]
[1733608646566,1.04105481,4008.6,4008.2,0.998108]
[1733608646869,3.37901396,4008.5,4008.2,0.998108]
[1733608647071,3.37901396,4008.4,4007.9,0.8286]
[1733608647228,3.37901396,4008.3,4007.9,1.826791]
[1733608647434,2.33795915,4008.2,4007.9,1.826791]
[1733608647687,0.86063448,4008.1,4007.9,1.826791]
[1733608647861,1.04105481,4008.3,4007.9,1.826791]
[1733608648049,1.04105481,4008.3,4008.2,1.0745221]
[1733608648244,3.37861602,4008.3,4008.2,1.0745221]
[1733608648549,3.37861602,4008.3,4008.2,1.0993221]
[1733608648550,6.69260169,4008.3,4008.2,1.0993221]
[1733608648758,6.85183414,4008.3,4008.2,1.0993221]
[1733608649052,8.93335142,4008.3,4008.2,1.0993221]
[1733608649448,9.74197396,4008.3,4008.2,1.0993221]
[1733608649692,9.97420855,4008.3,4008.2,1.0993221]
[1733608649870,9.97420855,4008.3,4007.5,0.93274009]
[1733608649871,0.8098,4008.2,4007.7,1.0745221]
[1733608650055,4.11655821,4007.8,4007.7,1.0745221]
[1733608650395,6.91115725,4007.8,4007.7,1.0745221]
[1733608650692,3.44452635,4007.8,4007.7,1.0745221]
[1733608650886,2.03515309,4007.8,4007.7,1.0745221]
[1733608651046,4.18408241,4007.8,4007.7,1.0745221]
[1733608651250,3.14453808,4007.8,4007.7,1.0745221]
[1733608651480,4.18370524,4007.8,4007.7,1.0745221]
[1733608652687,5.93029524,4007.8,4007.7,1.0993221]
[1733608652849,6.85105604,4007.8,4007.7,1.0993221]
[1733608653484,5.81188888,4007.8,4007.7,1.0993221]
[1733608653863,6.85105604,4007.8,4007.7,0.0248]
[1733608654202,6.10862016,4007.8,4007.7,0.0248]
[1733608654492,5.81188888,4007.8,4007.7,0.0248]
[1733608655315,6.85010376,4007.8,4007.7,0.0248]
[1733608655920,5.10030622,4007.8,4007.7,1.0993221]
[1733608656126,3.14133054,4007.8,4007.7,1.0993221]
[1733608656304,1.85389655,4007.8,4007.7,1.0993221]
[1733608656623,1.85372053,4007.8,4007.7,1.0993221]
[1733608657331,0.99560722,4007.8,4007.7,1.0993221]
[1733608657816,1.85359874,4007.8,4007.7,1.0993221]
[1733608658186,0.18580722,4007.8,4007.7,1.0993221]
[1733608658898,1.28684097,4008.0,4007.7,1.12114103]
[1733608659102,1.04313928,4007.9,4007.7,1.0993221]
[1733608659327,3.55577488,4008.1,4007.7,1.0993221]
[1733608659492,2.32999254,4008.0,4007.7,1.0993221]
[1733608659693,1.04308359,4007.9,4007.7,1.0993221]
[1733608659926,3.55577488,4008.1,4007.7,1.0993221]
[1733608660111,2.32981601,4008.0,4007.7,1.0993221]
[1733608660315,0.18524565,4007.9,4007.7,1.0993221]
[1733608660628,3.55577488,4008.1,4007.7,1.0993221]
[1733608660836,2.32969766,4008.0,4007.7,1.0993221]
[1733608660992,0.18523979,4007.9,4007.7,1.0993221]
[1733608661192,4.24198753,4008.1,4007.7,1.0993221]
[1733608661434,1.04302095,4008.0,4007.7,1.0993221]
[1733608661631,3.20377265,4008.1,4007.7,1.0993221]
[1733608661838,1.04304773,4008.0,4007.7,1.0993221]
[1733608662038,3.20377265,4008.1,4007.7,1.0993221]
[1733608662192,1.04304638,4008.0,4007.7,1.0993221]
[1733608662397,3.20377265,4008.1,4007.7,1.0993221]
[1733608662697,0.18524858,4008.0,4007.7,1.0993221]
[1733608663046,3.20377265,4008.1,4007.7,1.0993221]
[1733608663209,0.18523195,4008.0,4007.7,1.0993221]
[1733608663531,0.18523623,4007.9,4007.7,1.0993221]
[1733608663748,4.24198753,4008.1,4007.7,1.0993221]
[1733608663899,2.32939529,4008.0,4007.7,1.0993221]
[1733608664095,1.04289669,4007.9,4007.7,1.0993221]
[1733608664312,0.18523096,4007.8,4007.7,1.0993221]
[1733608664538,1.28663263,4008.0,4007.7,1.0993221]
[1733608664711,0.18524846,4007.8,4007.7,1.0993221]
[1733608664915,1.28656494,4008.0,4007.7,1.0993221]
[1733608665234,4.24198753,4008.1,4007.7,1.0993221]
[1733608665235,0.18524466,4007.9,4007.7,1.0993221]
[1733608665407,4.24198753,4008.1,4007.7,1.0993221]
[1733608665746,1.04296621,4008.0,4007.7,1.0993221]
[1733608666048,1.04297903,4007.9,4007.7,1.0993221]
[1733608666212,0.1852557,4007.8,4007.7,1.0993221]
[1733608667148,4.24198753,4008.1,4007.7,1.0993221]
[1733608667345,2.92261715,4008.0,4007.7,1.0993221]
[1733608667508,0.18529279,4007.9,4007.7,1.0993221]
[1733608667709,0.18529279,4007.8,4007.7,1.0993221]
[1733608667913,0.59277239,4008.0,4007.7,1.0993221]
[1733608668157,0.18530564,4007.9,4007.7,1.0993221]
[1733608668461,0.7711,4008.1,4007.8,0.02238211]
[1733608668745,1.04310762,4008.0,4007.8,0.02238211]
[1733608668954,2.30893077,4008.3,4007.8,0.0248]
[1733608668955,1.03821488,4008.3,4007.8,0.0248]
[1733608669133,1.04315001,4008.2,4007.9,0.02238211]
[1733608669444,0.18533315,4008.1,4007.9,0.02238211]
[1733608669645,1.28678089,4008.3,4007.9,0.02238211]
[1733608669849,1.03821488,4008.4,4008.3,1.0745221]
[1733608670191,3.66545655,4008.4,4008.3,1.0745221]
[1733608670509,1.52028052,4008.4,4008.3,1.0745221]
[1733608670708,0.18540986,4008.4,4008.3,1.0993221]
[1733608670947,0.18540986,4008.4,4008.3,1.12165603]
[1733608671155,0.18540986,4008.4,4008.3,1.0993221]
[1733608672135,2.78441488,4008.8,4008.3,1.0993221]
[1733608672136,1.28710711,4008.7,4008.3,1.0993221]
[1733608672361,2.78441488,4008.8,4008.6,1.0745221]
[1733608672513,2.6273763,4008.7,4008.6,1.0745221]
[1733608672718,2.6273763,4008.7,4008.6,1.0993221]
[1733608673747,3.66559118,4008.7,4008.6,1.0993221]
[1733608673985,2.6273763,4008.7,4008.6,1.0993221]
[1733608674374,3.66559118,4008.7,4008.6,1.0993221]
[1733608674947,4.52897871,4008.7,4008.6,0.0248]
[1733608675682,4.52902351,4008.7,4008.6,0.0248]
[1733608675849,4.04675757,4008.7,4008.6,0.0248]
[1733608676189,4.52931986,4008.7,4008.6,0.0248]
[1733608679285,4.52933141,4008.7,4008.6,0.0248]
[1733608679486,3.49110498,4008.7,4008.6,0.0248]
[1733608680459,1.34552998,4008.7,4008.6,0.0248]
[1733608680654,3.49199566,4008.7,4008.6,0.0248]
[1733608681469,3.49199566,4008.7,4008.6,0.04676325]
[1733608681672,2.62902797,4008.7,4008.6,0.04676325]
[1733608682010,3.66747673,4008.7,4008.6,0.04676325]
[1733608682152,3.66747673,4008.7,4008.6,0.80626325]
[1733608682153,1.34114856,4008.7,4008.6,0.80626325]
[1733608682354,1.03844876,4009.0,4008.6,0.80626325]
[1733608682584,1.04439302,4008.9,4008.6,0.80626325]
[1733608682864,0.18562503,4008.8,4008.6,0.80626325]
[1733608683089,0.18562503,4008.7,4008.6,0.80626325]
[1733608683305,1.03844876,4009.1,4008.6,0.80626325]
[1733608683458,2.33252796,4009.0,4008.6,0.80626325]
[1733608683660,1.03844876,4009.1,4008.6,0.80626325]
[1733608683661,1.04436425,4008.9,4008.6,0.80626325]
[1733608683859,0.18558845,4008.8,4008.6,0.80626325]
[1733608684156,1.03844876,4009.0,4008.6,0.80626325]
[1733608684357,1.04435203,4008.9,4008.6,0.80626325]
[1733608684564,0.1855633,4008.8,4008.6,0.80626325]
[1733608684789,1.03844876,4009.1,4008.6,0.80626325]
[1733608685104,2.33263318,4009.0,4008.6,0.80626325]
[1733608685409,0.18557338,4008.9,4008.6,0.80626325]
[1733608685701,0.18554135,4008.8,4008.6,0.80626325]
[1733608685903,1.03844876,4009.1,4008.6,0.80626325]
[1733608686100,2.33239147,4009.0,4008.6,0.80626325]
[1733608686306,1.04428169,4008.9,4008.6,0.80626325]
[1733608686513,0.18554184,4008.8,4008.6,0.80626325]
[1733608686801,1.03844876,4009.0,4008.7,1.0745221]
[1733608686957,1.04430324,4008.9,4008.7,1.0745221]
[1733608687161,0.18553494,4008.8,4008.7,1.0745221]
[1733608687589,0.18553494,4008.8,4008.7,1.09648535]
[1733608688161,1.03844876,4009.1,4008.7,1.09648535]
[1733608688364,2.33237794,4009.0,4008.7,0.02196325]
[1733608688596,1.04425719,4008.9,4008.7,0.02196325]
[1733608688860,0.18551003,4008.8,4008.7,0.02196325]
[1733608689702,1.04447829,4008.8,4008.6,0.7843]
[1733608689898,1.03844876,4008.9,4008.7,1.0745221]
[1733608690102,1.04451003,4008.8,4008.7,1.0745221]
[1733608690471,0.18555015,4008.8,4008.7,1.0745221]
[1733608692893,0.18557439,4008.8,4008.7,1.0745221]
[1733608694594,1.03844876,4009.1,4008.7,1.0745221]
[1733608694799,1.04456134,4009.0,4008.6,0.7843]
[1733608695003,1.03844876,4009.2,4008.9,1.0745221]
[1733608695220,3.60678939,4009.3,4008.9,1.0993221]
[1733608695221,3.37142139,4009.1,4008.9,1.0993221]
[1733608695382,1.04456227,4009.0,4008.9,1.0993221]
[1733608696127,2.33283584,4009.0,4008.9,0.05986549]
[1733608696319,2.6298995,4009.0,4008.9,0.05986549]
[1733608696564,3.66850378,4009.0,4008.9,0.05986549]
[1733608697600,2.63005502,4009.0,4008.9,0.05986549]
[1733608698426,2.63019936,4009.0,4008.9,0.05986549]
[1733608700328,0.48284121,4009.0,4008.9,0.05986549]
[1733608700489,0.18570816,4009.0,4008.9,0.05986549]
[1733608701437,1.34243199,4009.0,4008.9,0.05986549]
[1733608701673,0.48320517,4009.0,4008.9,0.05986549]
[1733608701880,0.18570816,4009.0,4008.9,0.05986549]
[1733608703572,1.34247405,4009.0,4008.9,0.05986549]
[1733608703751,0.18570816,4009.0,4008.9,0.05986549]
[1733608703942,1.3425065,4009.0,4008.9,0.05986549]
[1733608704141,0.18570816,4009.0,4008.9,0.05986549]
[1733608704374,1.34250274,4009.0,4008.9,0.05986549]
[1733608706457,0.48320944,4009.0,4008.9,0.05986549]
[1733608707390,1.74585,4009.5,4008.9,0.05986549]
[1733608707545,0.18600071,4009.0,4008.9,0.0248]
[1733608707745,2.63244957,4009.0,4008.9,0.0248]
[1733608707944,1.34311117,4009.0,4008.9,0.0248]
[1733608708369,2.63241522,4009.0,4008.9,0.0248]
[1733608708970,2.63260913,4009.0,4008.9,0.0248]
[1733608709753,2.63260913,4009.0,4008.9,1.0993221]
[1733608710293,3.67207618,4009.0,4008.9,1.0993221]
[1733608710443,2.63260913,4009.0,4008.9,1.0993221]
[1733608710648,3.67207618,4009.0,4008.9,1.0993221]
[1733608711247,2.63260913,4009.0,4008.9,1.0993221]
[1733608712724,3.67207618,4009.0,4008.9,1.0993221]
[1733608713906,3.67444458,4009.0,4008.9,1.0993221]
[1733608714506,2.15137568,4009.0,4008.9,1.0993221]
[1733608714676,2.63536344,4009.0,4008.9,1.0993221]
[1733608714877,2.63536518,4009.0,4008.9,1.0993221]
[1733608718721,2.63536518,4009.0,4008.9,0.0248]
[1733608718933,2.63536518,4009.0,4008.9,1.0993221]
[1733608721627,4.19456576,4009.0,4008.9,1.0993221]
[1733608721797,2.63536518,4009.0,4008.9,1.0993221]
[1733608721986,4.19456576,4009.0,4008.9,1.0993221]
[1733608722409,2.63536518,4009.0,4008.9,1.0993221]
[1733608722609,4.19456576,4009.0,4008.9,1.0993221]
[1733608723986,4.19788694,4009.0,4008.9,1.0993221]
[1733608724697,3.71389744,4009.0,4008.9,1.0993221]
[1733608724903,4.19802251,4009.0,4008.9,1.0993221]
[1733608725604,4.36260915,4009.0,4008.9,1.0993221]
[1733608725920,4.36266779,4009.0,4008.9,1.0993221]
[1733608726700,6.4416019,4009.0,4008.9,1.0993221]
[1733608726899,4.36266779,4009.0,4008.9,1.0993221]
[1733608727338,6.4416019,4009.0,4008.9,1.0993221]
[1733608727643,4.36266779,4009.0,4008.9,1.0993221]
[1733608728904,6.44231755,4009.0,4008.9,1.0993221]
[1733608729407,4.36338344,4009.0,4008.9,1.0993221]
[1733608731462,6.44231755,4009.0,4008.9,1.0993221]
[1733608732870,6.44252055,4009.0,4008.9,1.0993221]
[1733608733867,6.44276199,4009.0,4008.9,1.0993221]
[1733608735140,6.44276415,4009.0,4008.9,1.0993221]
[1733608736324,5.95840419,4009.0,4008.9,1.0993221]
[1733608736527,4.36381623,4009.0,4008.9,1.0993221]
[1733608736969,6.44950745,4009.0,4008.9,1.0993221]
[1733608737272,4.36381623,4009.0,4008.9,1.0993221]
[1733608737471,6.44989047,4009.0,4008.9,1.0993221]
[1733608737969,4.36381623,4009.0,4008.9,1.0993221]
[1733608738942,4.36439043,4009.0,4008.9,1.0993221]
[1733608739345,6.45059414,4009.0,4008.9,1.0993221]
[1733608740060,5.96624799,4009.0,4008.9,1.0993221]
[1733608740257,6.45072341,4009.0,4008.9,1.0993221]
[1733608741662,7.53115935,4009.0,4008.9,0.0248]
[1733608741850,7.53115935,4009.0,4008.9,1.0993221]
[1733608742175,5.44491042,4009.0,4008.9,1.0993221]
[1733608742472,4.96048022,4009.0,4008.9,1.0993221]
[1733608742673,5.44491531,4009.0,4008.9,1.0993221]
[1733608742976,5.44491531,4009.0,4008.9,0.0248]
[1733608743131,5.44491531,4009.0,4008.9,1.0993221]
[1733608743832,7.19098531,4009.0,4008.9,1.0993221]
[1733608745182,9.79867125,4009.0,4008.9,1.0993221]
[1733608745384,9.79867125,4009.0,4008.9,0.0248]
[1733608745641,9.79867125,4009.0,4008.0,1.04404519]
[1733608745642,1.74615,4008.8,4008.6,1.0745221]
[1733608745840,10.35794665,4008.7,4008.6,1.0745221]
[1733608746020,10.35794727,4008.7,4008.6,1.0745221]
[1733608746393,9.74878644,4008.7,4008.6,1.0745221]
[1733608746640,7.74945302,4008.7,4008.6,1.0745221]
[1733608746819,10.35725632,4008.7,4008.6,1.0745221]
[1733608747004,7.74945302,4008.7,4008.3,1.0745221]
[1733608747204,2.08625501,4008.5,4008.3,1.0745221]
[1733608747411,4.36404503,4008.4,4008.3,1.0745221]
[1733608747711,4.06591694,4008.4,4008.3,1.0745221]
[1733608748508,4.36373943,4008.4,4008.3,1.0993221]
[1733608748732,6.44999444,4008.4,4008.3,1.0993221]
[1733608749106,4.36373943,4008.4,4008.3,1.0993221]
[1733608749335,4.06591694,4008.4,4008.3,1.0993221]
[1733608749736,4.06562774,4008.4,4008.3,1.0993221]
[1733608750045,4.36328887,4008.4,4008.3,1.0993221]
[1733608750442,4.06562774,4008.4,4008.3,1.0993221]
[1733608750958,4.36324609,4008.4,4008.3,1.0993221]
[1733608751468,4.06562774,4008.4,4008.3,1.0993221]
[1733608752161,4.36320832,4008.4,4008.3,1.0993221]
[1733608752365,4.36068393,4008.4,4008.3,1.0993221]
[1733608752764,7.89965824,4008.4,4008.3,0.0248]
[1733608753076,10.7361753,4008.4,4008.3,0.0248]
[1733608753228,8.13193596,4008.4,4008.3,0.0248]
[1733608753925,8.1318664,4008.4,4008.3,0.0248]
[1733608754264,9.98162765,4008.4,4008.3,0.0248]
[1733608757124,8.68891917,4008.4,4008.3,0.0248]
[1733608757436,9.97972925,4008.4,4008.3,0.0248]
[1733608757622,7.89760277,4008.4,4008.3,0.0248]
[1733608761678,6.10495846,4008.4,4008.3,1.0993221]
[1733608761831,5.94161136,4008.4,4008.3,1.0993221]
[1733608762026,5.64327792,4008.4,4008.3,1.0993221]
[1733608762371,4.08281105,4008.4,4008.3,1.0993221]
[1733608762529,5.64327792,4008.4,4008.3,1.0993221]